Workbook

Sheet Aktivitas Penjualan Mingguan
B1: AKTIVITAS PENJUALAN MINGGUAN | I1: STAF PENJUALAN | J1: Nama | L1: AKHIR MINGGU | M1: Tanggal
I3: LOKASI | J3: Lokasi | L3: TANGGAL HARI INI | M3: Tanggal
B5: HARI | C5: DALAM KANTOR | D5: DI LUAR KANTOR | E5: KUNJUNGAN DALAM KANTOR | F5: PANGGILAN KELUAR | G5: PANGGILAN TELEPON | H5: TELEPON REKENING BARU | I5: RUANG TAMU | J5: MAKANAN & MINUMAN | K5: SEWA RUANG RAPAT | L5: LAINNYA* | M5: TOTAL
B6: Senin | C6: Rp14.00 | D6: Rp23.00 | E6: Rp4.00 | F6: Rp45.00 | G6: Rp22.00 | H6: Rp2.00 | I6: Rp100.00 | J6: Rp0.00 | K6: Rp0.00 | L6: Rp0.00 | M6: =SUM(Aktivitas[[#This Row],[DALAM KANTOR]:[LAINNYA*]]) -> Rp210.00
B7: Selasa | C7: Rp23.00 | D7: Rp76.00 | E7: Rp10.00 | F7: Rp50.00 | G7: Rp54.00 | H7: Rp45.00 | I7: Rp80.00 | J7: Rp0.00 | K7: Rp0.00 | L7: Rp0.00 | M7: =SUM(Aktivitas[[#This Row],[DALAM KANTOR]:[LAINNYA*]]) -> Rp338.00
B8: Rabu | C8: Rp4.00 | D8: Rp130.00 | E8: Rp11.00 | F8: Rp33.00 | G8: Rp67.00 | H8: Rp65.00 | I8: Rp400.00 | J8: Rp0.00 | K8: Rp0.00 | L8: Rp0.00 | M8: =SUM(Aktivitas[[#This Row],[DALAM KANTOR]:[LAINNYA*]]) -> Rp710.00
B9: Kamis | C9: Rp102.00 | D9: Rp40.00 | E9: Rp18.00 | F9: Rp0.00 | G9: Rp86.00 | H9: Rp82.00 | I9: Rp97.00 | J9: Rp0.00 | K9: Rp0.00 | L9: Rp0.00 | M9: =SUM(Aktivitas[[#This Row],[DALAM KANTOR]:[LAINNYA*]]) -> Rp425.00
B10: Jumat | C10: Rp33.00 | D10: Rp55.00 | E10: Rp22.00 | F10: Rp49.00 | G10: Rp143.00 | H10: Rp26.00 | I10: Rp50.00 | J10: Rp0.00 | K10: Rp0.00 | L10: Rp0.00 | M10: =SUM(Aktivitas[[#This Row],[DALAM KANTOR]:[LAINNYA*]]) -> Rp378.00
B11: Sabtu | C11: Rp0.00 | D11: Rp0.00 | E11: Rp0.00 | F11: Rp0.00 | G11: Rp0.00 | H11: Rp0.00 | I11: Rp0.00 | J11: Rp0.00 | K11: Rp0.00 | L11: Rp0.00 | M11: =SUM(Aktivitas[[#This Row],[DALAM KANTOR]:[LAINNYA*]]) -> Rp0.00
B12: Minggu | C12: Rp0.00 | D12: Rp0.00 | E12: Rp0.00 | F12: Rp0.00 | G12: Rp0.00 | H12: Rp0.00 | I12: Rp0.00 | J12: Rp0.00 | K12: Rp0.00 | L12: Rp0.00 | M12: =SUM(Aktivitas[[#This Row],[DALAM KANTOR]:[LAINNYA*]]) -> Rp0.00
B13: Total | C13: =SUBTOTAL(109,Aktivitas[DALAM KANTOR]) -> Rp176.00 | D13: =SUBTOTAL(109,Aktivitas[DI LUAR KANTOR]) -> Rp324.00 | E13: =SUBTOTAL(109,Aktivitas[KUNJUNGAN DALAM KANTOR]) -> Rp65.00 | F13: =SUBTOTAL(109,Aktivitas[PANGGILAN KELUAR]) -> Rp177.00 | G13: =SUBTOTAL(109,Aktivitas[PANGGILAN TELEPON]) -> Rp372.00 | H13: =SUBTOTAL(109,Aktivitas[TELEPON REKENING BARU]) -> Rp220.00 | I13: =SUBTOTAL(109,Aktivitas[RUANG TAMU]) -> Rp727.00 | J13: =SUBTOTAL(109,Aktivitas[MAKANAN & MINUMAN]) -> Rp0.00 | K13: =SUBTOTAL(109,Aktivitas[SEWA RUANG RAPAT]) -> Rp0.00 | L13: =SUBTOTAL(109,Aktivitas[LAINNYA*]) -> Rp0.00 | M13: =SUBTOTAL(109,Aktivitas[TOTAL]) -> Rp2,061.00
B15: TARGET | C15: Rp200.00 | D15: Rp400.00 | E15: Rp300.00 | F15: Rp65.00 | G15: Rp500.00 | H15: Rp300.00 | I15: Rp400.00 | J15: Rp600.00 | K15: Rp300.00 | L15: Rp300.00 | M15: =SUM(C15:L15) -> Rp3,365.00
B16: SELISIH | C16: =SUM(Aktivitas[[#Totals],[DALAM KANTOR]]-C15) -> -Rp24.00 | D16: =SUM(Aktivitas[[#Totals],[DI LUAR KANTOR]]-D15) -> -Rp76.00 | E16: =SUM(Aktivitas[[#Totals],[KUNJUNGAN DALAM KANTOR]]-E15) -> -Rp235.00 | F16: =SUM(Aktivitas[[#Totals],[PANGGILAN KELUAR]]-F15) -> Rp112.00 | G16: =SUM(Aktivitas[[#Totals],[PANGGILAN TELEPON]]-G15) -> -Rp128.00 | H16: =SUM(Aktivitas[[#Totals],[TELEPON REKENING BARU]]-H15) -> -Rp80.00 | I16: =SUM(Aktivitas[[#Totals],[RUANG TAMU]]-I15) -> Rp327.00 | J16: =SUM(Aktivitas[[#Totals],[MAKANAN & MINUMAN]]-J15) -> -Rp600.00 | K16: =SUM(Aktivitas[[#Totals],[SEWA RUANG RAPAT]]-K15) -> -Rp300.00 | L16: =SUM(Aktivitas[[#Totals],[LAINNYA*]]-L15) -> -Rp300.00 | M16: =SUM(C16:L16) -> -Rp1,304.00
B18: *PENJELASAN
B20: Persetujuan
